fUSD/lending_fUSD_20240109
["ID","MTS","AMOUNT","RATE_DAILY","PERIOD"]
[310975164,1704838272785,-500.0,0.00041178,30]
[310975165,1704838272794,-522.65,0.00041178,30]
[310975166,1704838272806,-1195.65,0.00041178,30]
[310975167,1704838272815,-444.13013741,0.00041178,30]
[310975168,1704838272825,-1655.71,0.00041178,30]
[310975169,1704838272835,-500.0,0.00041178,30]
[310975170,1704838272844,-500.0,0.00041178,30]
[310975171,1704838272854,-500.0,0.00041178,30]
[310975172,1704838272863,-561.13,0.00041178,30]
[310975173,1704838272873,-500.0,0.00041178,30]
[310975174,1704838272883,-500.0,0.00041178,30]
[310975175,1704838272892,-506.62250415,0.00041178,30]
[310975176,1704838272902,-500.0,0.00041178,30]
[310975177,1704838273050,-500.0,0.00041178,30]
[310975178,1704838273059,-500.0,0.00041178,30]
[310975179,1704838273069,-1772.94,0.00041178,30]
[310975180,1704838273078,-500.0,0.00041178,30]
[310975181,1704838273087,-500.0,0.00041178,30]
[310975182,1704838273097,-500.0,0.00041178,30]
[310975183,1704838273106,-500.0,0.00041178,30]
[310975184,1704838273115,-500.0,0.00041178,30]
[310975185,1704838273124,-500.0,0.00041178,30]
[310975186,1704838273133,-574.09,0.00041178,30]
[310975187,1704838273143,-962.61,0.00041178,30]
[310975188,1704838273152,-1512.77,0.00041178,30]
[310975189,1704838273161,-500.0,0.00041178,30]
[310975190,1704838273169,-500.0,0.00041178,30]
[310975191,1704838273178,-500.0,0.00041178,30]
[310975192,1704838273187,-500.0,0.00041178,30]
[310975193,1704838273196,-500.0,0.00041178,30]
[310975194,1704838273205,-500.0,0.00041178,30]
[310975195,1704838273215,-620.4,0.00041178,30]
[310975196,1704838273225,-726.32,0.00041178,30]
[310975197,1704838273234,-549.54258124,0.00041178,30]
[310975198,1704838273243,-500.0,0.00041178,30]
[310975199,1704838273252,-500.0,0.00041178,30]
[310975200,1704838273261,-500.0,0.00041178,30]
[310975201,1704838273270,-4344.57,0.00041178,30]
[310975202,1704838273279,-500.0,0.00041178,30]
[310975203,1704838273288,-500.0,0.00041178,30]
[310975204,1704838273297,-1267.88,0.00041178,30]
[310975205,1704838273307,-500.0,0.00041178,30]
[310975206,1704838273317,-500.0,0.00041178,30]
[310975207,1704838273326,-500.0,0.00041178,30]
[310975208,1704838273335,-500.0,0.00041178,30]
[310975209,1704838273345,-500.0,0.00041178,30]
[310975210,1704838273354,-500.0,0.00041178,30]
[310975211,1704838273362,-239.29249406,0.00041178,30]
[310975212,1704838273371,-500.0,0.00041178,30]
[310975213,1704838273380,-500.0,0.00041178,30]
[310975214,1704838273389,-500.0,0.00041178,30]
[310975215,1704838273398,-500.0,0.00041178,30]
[310975216,1704838273407,-500.0,0.00041178,30]
[310975217,1704838273416,-994.56,0.00041178,30]
[310975218,1704838273425,-808.78,0.00041178,30]
[310975219,1704838273434,-1000.0,0.00041178,30]
[310975220,1704838273444,-500.0,0.00041178,30]
[310975221,1704838273453,-500.0,0.00041178,30]
[310975222,1704838273462,-500.0,0.00041178,30]
[310975223,1704838273471,-500.0,0.00041178,30]
[310975224,1704838273480,-1548.01,0.00041178,30]
[310975225,1704838273489,-500.0,0.00041178,30]
[310975226,1704838273499,-1847.0,0.00041178,30]
[310975227,1704838273508,-818.42,0.00041178,30]
[310975228,1704838273517,-500.0,0.00041178,30]
[310975229,1704838273527,-500.0,0.00041178,30]
[310975230,1704838273537,-500.0,0.00041178,30]
[310975231,1704838273547,-500.0,0.00041178,30]
[310975232,1704838273561,-1398.94,0.00041178,30]
[310975233,1704838273571,-500.0,0.00041178,30]
[310975234,1704838273580,-500.0,0.00041178,30]
[310975235,1704838273590,-608.39,0.00041178,30]
[310975236,1704838273599,-612.28,0.00041178,30]
[310975237,1704838273609,-500.0,0.00041178,30]
[310975238,1704838273618,-500.0,0.00041178,30]
[310975239,1704838273627,-500.0,0.00041178,30]
[310975240,1704838273636,-500.0,0.00041178,30]
[310975241,1704838273645,-500.0,0.00041178,30]
[310975242,1704838273654,-500.0,0.00041178,30]
[310975243,1704838273664,-900.47,0.00041178,10]
[310975244,1704838273673,-549.8,0.00041178,30]
[310975245,1704838273682,-723.87,0.00041178,30]
[310975246,1704838273692,-2028.27,0.00041178,30]
[310975247,1704838273701,-2514.08,0.00041178,30]
[310975248,1704838273710,-500.0,0.00041178,30]
[310975249,1704838273720,-500.0,0.00041178,30]
[310975250,1704838273729,-1147.93,0.00041178,30]
[310975251,1704838273739,-500.0,0.00041178,30]
[310975252,1704838273749,-500.0,0.00041178,30]
[310975253,1704838273759,-2024.87,0.00041178,30]
[310975254,1704838273768,-899.03,0.00041178,30]
[310975255,1704838273778,-500.0,0.00041178,30]
[310975256,1704838273787,-500.0,0.00041178,30]
[310975257,1704838273797,-607.6,0.00041178,30]
[310975258,1704838273810,-1740.87,0.00041178,30]
[310975259,1704838273819,-500.0,0.00041178,30]
[310975260,1704838273829,-500.0,0.00041178,30]
[310975261,1704838273839,-500.0,0.00041178,30]
[310975262,1704838273848,-1137.4,0.00041178,30]
[310975263,1704838273858,-500.0,0.00041178,30]
[310975264,1704838273868,-322.20448887,0.00041178,30]
[310975265,1704838273878,-1102.73,0.00041178,30]
[310975266,1704838273888,-500.0,0.00041178,30]
[310975267,1704838273897,-500.0,0.00041178,30]
[310975268,1704838273907,-2568.33,0.00041178,30]
[310975269,1704838273917,-8096.32,0.00041178,30]
[310975270,1704838273926,-500.0,0.00041178,30]
[310975271,1704838273936,-500.0,0.00041178,30]
[310975272,1704838273945,-500.0,0.00041178,30]
[310975273,1704838273955,-1731.94,0.00041178,30]
[310975274,1704838273964,-500.0,0.00041178,30]
[310975275,1704838273973,-889.91,0.00041178,30]
[310975276,1704838273983,-500.0,0.00041178,30]
[310975277,1704838273991,-500.0,0.00041178,30]
[310975278,1704838274000,-869.4,0.00041178,30]
[310975279,1704838274010,-588.64,0.00041178,30]
[310975280,1704838274020,-500.0,0.00041178,30]
[310975281,1704838274029,-573.17,0.00041178,30]
[310975282,1704838274038,-2390.88,0.00041178,30]
[310975283,1704838274048,-530.46,0.00041178,30]
[310975284,1704838274059,-1686.48,0.00041178,30]
[310975285,1704838274069,-1139.86,0.00041178,30]
[310975286,1704838274078,-500.0,0.00041178,30]
[310975287,1704838274088,-500.0,0.00041178,30]
[310975288,1704838274097,-1680.83,0.00041178,30]
[310975289,1704838274106,-1855.67,0.00041178,30]
[310975290,1704838274115,-1222.91,0.00041178,30]
[310975291,1704838274124,-964.43,0.00041178,30]
[310975292,1704838274133,-500.0,0.00041178,30]
[310975293,1704838274141,-500.0,0.00041178,30]
[310975294,1704838274150,-1068.17,0.00041178,30]
[310975295,1704838274159,-4050.58,0.00041178,30]
[310975296,1704838274168,-500.0,0.00041178,30]
[310975297,1704838274177,-500.0,0.00041178,30]
[310975298,1704838274187,-500.0,0.00041178,30]
[310975299,1704838274195,-553.17091297,0.00041178,30]
[310975300,1704838274205,-500.0,0.00041178,30]
[310975301,1704838274214,-500.0,0.00041178,30]
[310975302,1704838274223,-500.0,0.00041178,30]
[310975303,1704838274232,-519.97573387,0.00041178,30]
[310975304,1704838274244,-500.0,0.00041178,30]
[310975305,1704838274254,-500.0,0.00041178,30]
[310975306,1704838274263,-500.0,0.00041178,30]
[310975307,1704838274272,-1169.54,0.00041178,30]
[310975308,1704838274282,-500.0,0.00041178,30]
[310975309,1704838274291,-1173.13,0.00041178,30]
[310975310,1704838274300,-3009.19,0.00041178,30]
[310975311,1704838274311,-337.45280278,0.00041178,30]
[310975312,1704838274325,-500.0,0.00041178,30]
[310975313,1704838274335,-1486.96,0.00041178,30]
[310975314,1704838274345,-500.0,0.00041178,30]
[310975315,1704838274354,-1602.35,0.00041178,30]
[310975316,1704838274363,-1254.88,0.00041178,30]
[310975317,1704838274372,-500.0,0.00041178,30]
[310975318,1704838274381,-228.15561169,0.00041178,30]
[310975319,1704838274390,-516.09,0.00041178,30]
[310975320,1704838274399,-335.3942161,0.00041178,30]
[310975321,1704838274409,-524.88,0.00041178,30]
[310975322,1704838274418,-500.0,0.00041178,30]
[310975323,1704838274426,-500.0,0.00041178,30]
[310975324,1704838274436,-500.0,0.00041178,30]
[310975325,1704838274445,-650.86,0.00041178,30]
[310975326,1704838274454,-2722.07,0.00041178,30]
[310975327,1704838274463,-500.0,0.00041178,30]
[310975328,1704838274472,-500.0,0.00041178,30]
[310975329,1704838274481,-418.52815657,0.00041178,30]
[310975330,1704838274491,-271.38174769,0.00041178,30]
[310975331,1704838274500,-500.0,0.00041178,30]
[310975332,1704838274509,-1778.76,0.00041178,30]
[310975333,1704838274518,-1497.92,0.00041178,30]
[310975334,1704838274526,-500.0,0.00041178,30]
[310975335,1704838274535,-4756.62,0.00041178,30]
[310975336,1704838274544,-1011.55,0.00041178,30]
[310975337,1704838274556,-1007.52,0.00041178,30]
[310975338,1704838274565,-4422.57,0.00041178,30]
[310975339,1704838274574,-500.0,0.00041178,30]
[310975340,1704838274583,-500.0,0.00041178,30]
[310975341,1704838274592,-592.7,0.00041178,15]
[310975342,1704838274601,-501.45252626,0.00041178,30]
[310975343,1704838274610,-3355.27,0.00041178,30]
[310975344,1704838274619,-1217.72,0.00041178,30]
[310975345,1704838274628,-6369.73,0.00041178,30]
[310975346,1704838274637,-500.0,0.00041178,30]
[310975347,1704838274647,-500.0,0.00041178,30]
[310975348,1704838274656,-996.83,0.00041178,7]
[310975349,1704838274665,-672.82,0.00041178,30]
[310975350,1704838274674,-1403.31,0.00041178,30]
[310975351,1704838274683,-1224.16,0.00041178,30]
[310975352,1704838274692,-1265.02,0.00041178,30]
[310975353,1704838274701,-2400.29,0.00041178,30]
[310975354,1704838274710,-500.0,0.00041178,30]
[310975355,1704838274719,-500.0,0.00041178,30]
[310975356,1704838274729,-1656.57,0.00041178,30]
[310975357,1704838274738,-434.41244304,0.00041178,30]
[310975358,1704838274747,-500.0,0.00041178,30]
[310975359,1704838274756,-1474.37,0.00041178,30]
[310975360,1704838274765,-5306.63,0.00041178,30]
[310975361,1704838274775,-1253.27,0.00041178,30]
[310975362,1704838274784,-500.0,0.00041178,30]
[310975363,1704838274793,-500.0,0.00041178,30]
[310975364,1704838274803,-500.0,0.00041178,30]
[310975365,1704838274812,-920.49,0.00041178,30]
[310975366,1704838274821,-5738.94,0.00041178,30]
[310975367,1704838274831,-500.0,0.00041178,30]
[310975368,1704838274840,-497.66576163,0.00041178,30]
[310975369,1704838274849,-500.0,0.00041178,30]
[310975370,1704838274859,-500.0,0.00041178,30]
[310975371,1704838274868,-648.76,0.00041178,30]
[310975372,1704838274877,-2078.17,0.00041178,30]
[310975373,1704838274886,-300.0,0.00041178,30]
[310975374,1704838274895,-1636.77,0.00041178,30]
[310975375,1704838274905,-23527.09,0.00041178,30]
[310975376,1704838274914,-1419.15,0.00041178,30]
[310975377,1704838274924,-500.0,0.00041178,30]
[310975378,1704838274933,-500.0,0.00041178,30]
[310975379,1704838274942,-40274.12,0.00041178,30]
[310975380,1704838274951,-500.0,0.00041178,30]
[310975381,1704838274961,-1326.08,0.00041178,30]
[310975382,1704838274970,-500.0,0.00041178,30]
[310975383,1704838274979,-1844.23,0.00041178,30]
[310975384,1704838274989,-1179.37,0.00041178,30]
[310975385,1704838274998,-716.2,0.00041178,30]
[310975386,1704838275008,-2095.91,0.00041178,30]
[310975387,1704838275018,-500.0,0.00041178,30]
[310975388,1704838275027,-631.28,0.00041178,30]
[310975389,1704838275036,-947.08,0.00041178,30]
[310975390,1704838275046,-618.42,0.00041178,30]
[310975391,1704838275057,-1225.69,0.00041178,30]
[310975392,1704838275066,-500.0,0.00041178,30]
[310975393,1704838275075,-19597.44,0.00041178,30]
[310975394,1704838275084,-500.0,0.00041178,30]
[310975395,1704838275093,-2000.0,0.00041178,30]
[310975396,1704838275102,-2191.59,0.00041178,30]
[310975397,1704838275111,-987.64,0.00041178,30]
[310975398,1704838275121,-548.74,0.00041178,30]
[310975399,1704838275130,-1606.18,0.00041178,30]
[310975400,1704838275139,-500.0,0.00041178,30]
[310975401,1704838275149,-500.0,0.00041178,30]
[310975402,1704838275158,-500.0,0.00041178,30]
[310975403,1704838275168,-500.0,0.00041178,30]
[310975404,1704838275177,-500.0,0.00041178,30]
[310975405,1704838275186,-531.59,0.00041178,30]
[310975406,1704838275196,-500.0,0.00041178,30]
[310975407,1704838275206,-2815.18,0.00041178,30]
[310975408,1704838275216,-500.0,0.00041178,30]
[310975409,1704838275225,-1821.15,0.00041178,30]
[310975410,1704838275234,-500.0,0.00041178,30]
[310975411,1704838275244,-500.0,0.00041178,30]
[310975412,1704838275254,-500.0,0.00041178,30]
[310975413,1704838275263,-879.9,0.00041178,30]
[310975414,1704838275273,-878.71,0.00041178,30]
[310975415,1704838275282,-714.75,0.00041178,30]
[310975416,1704838275292,-909.19,0.00041178,30]
[310975417,1704838275304,-500.0,0.00041178,30]
[310975418,1704838275313,-2862.05,0.00041178,30]
[310975419,1704838275323,-500.0,0.00041178,30]
[310975420,1704838275332,-500.0,0.00041178,30]
[310975421,1704838275342,-500.0,0.00041178,30]
[310975422,1704838275352,-1271.06,0.00041178,30]
[310975423,1704838275361,-826.6,0.00041178,30]
[310975424,1704838275372,-500.0,0.00041178,30]
[310975425,1704838275382,-510.89808564,0.00041178,30]
[310975426,1704838275392,-500.0,0.00041178,30]
[310975427,1704838275401,-1798.77,0.00041178,30]
[310975428,1704838275411,-500.0,0.00041178,30]
[310975429,1704838275422,-500.0,0.00041178,30]
[310975430,1704838275431,-500.0,0.00041178,30]
[310975431,1704838275440,-3726.94,0.00041178,30]
[310975432,1704838275450,-9050.94,0.00041178,30]
[310975433,1704838275461,-4968.76,0.00041178,30]
[310975434,1704838275470,-967.65,0.00041178,30]
[310975435,1704838275479,-500.0,0.00041178,30]
[310975436,1704838275490,-500.0,0.00041178,30]
[310975437,1704838275501,-500.0,0.00041178,30]
[310975438,1704838275512,-500.0,0.00041178,30]
[310975439,1704838275521,-507.07103895,0.00041178,30]
[310975440,1704838275531,-500.0,0.00041178,30]
[310975441,1704838275541,-3143.9,0.00041178,30]
[310975442,1704838275551,-500.0,0.00041178,30]
[310975443,1704838275561,-500.0,0.00041178,30]
[310975444,1704838275571,-649.77486738,0.00041178,30]
[310975445,1704838275581,-500.0,0.00041178,30]
[310975446,1704838275594,-4640.82,0.00041178,30]
[310975447,1704838275605,-500.0,0.00041178,30]
[310975448,1704838275615,-3691.28,0.00041178,30]
[310975449,1704838275624,-500.0,0.00041178,10]
[310975450,1704838275635,-4801.8,0.00041178,30]
[310975451,1704838275644,-763.68,0.00041178,30]
[310975452,1704838275654,-500.0,0.00041178,30]
[310975453,1704838275664,-500.0,0.00041178,30]
[310975454,1704838275674,-500.0,0.00041178,30]
[310975455,1704838275684,-1212.84,0.00041178,30]
[310975456,1704838275694,-500.0,0.00041178,30]
[310975457,1704838275704,-500.0,0.00041178,30]
[310975458,1704838275715,-879.66,0.00041178,30]
[310975459,1704838275725,-755.7,0.00041178,30]
[310975460,1704838275735,-808.69,0.00041178,30]
[310975461,1704838275746,-500.0,0.00041178,30]
[310975462,1704838275756,-500.0,0.00041178,30]
[310975463,1704838275766,-2912.57,0.00041178,30]
[310975464,1704838275775,-1238.08,0.00041178,30]
[310975465,1704838275785,-500.0,0.00041178,30]
[310975466,1704838275795,-2784.54,0.00041178,30]
[310975467,1704838275807,-1161.59,0.00041178,30]
[310975468,1704838275816,-500.0,0.00041178,30]
[310975469,1704838275826,-3777.11,0.00041178,30]
[310975470,1704838275836,-8677.14,0.00041178,30]
[310975471,1704838275846,-500.0,0.00041178,30]
[310975472,1704838275856,-500.0,0.00041178,30]
[310975473,1704838275865,-2676.02,0.00041178,30]
[310975474,1704838275876,-592.81,0.00041178,30]
[310975475,1704838275885,-500.0,0.00041178,30]
[310975476,1704838275895,-500.0,0.00041178,30]
[310975477,1704838275905,-1639.34,0.00041178,30]
[310975478,1704838275915,-500.0,0.00041178,30]
[310975479,1704838275925,-500.0,0.00041178,30]
[310975480,1704838275935,-500.0,0.00041178,30]
[310975481,1704838275945,-1963.6,0.00041178,30]
[310975482,1704838275956,-3334.88,0.00041178,30]
[310975483,1704838275966,-500.0,0.00041178,30]
[310975484,1704838275976,-2139.94,0.00041178,30]
[310975485,1704838275987,-517.1,0.00041178,30]
[310975486,1704838275997,-500.0,0.00041178,30]
[310975487,1704838276007,-500.0,0.00041178,30]
[310975488,1704838276017,-500.0,0.00041178,30]
[310975489,1704838276026,-4276.14,0.00041178,30]
[310975490,1704838276036,-500.0,0.00041178,30]
[310975491,1704838276047,-500.0,0.00041178,30]
[310975492,1704838276059,-2333.49,0.00041178,30]
[310975493,1704838276068,-5902.3,0.00041178,30]
[310975494,1704838276078,-500.0,0.00041178,30]
[310975495,1704838276087,-500.0,0.00041178,30]
[310975496,1704838276098,-3826.6,0.00041178,30]
[310975497,1704838276108,-500.0,0.00041178,30]
[310975498,1704838276118,-2082.79,0.00041178,30]
[310975499,1704838276128,-500.0,0.00041178,30]
[310975500,1704838276139,-334.84570533,0.00041178,30]
[310975501,1704838276149,-500.0,0.00041178,30]
[310975502,1704838276159,-531.76,0.00041178,30]
[310975503,1704838276169,-500.0,0.00041178,30]
[310975504,1704838276179,-2908.78,0.00041178,30]
[310975505,1704838276189,-500.0,0.00041178,30]
[310975506,1704838276199,-500.0,0.00041178,30]
[310975507,1704838276210,-500.0,0.00041178,30]
[310975508,1704838276222,-1364.47,0.00041178,30]
[310975509,1704838276231,-588.57,0.00041178,30]
[310975510,1704838276243,-1379.01,0.00041178,30]
[310975511,1704838276252,-500.0,0.00041178,30]
[310975512,1704838276263,-769.62,0.00041178,30]
[310975513,1704838276273,-591.89,0.00041178,30]
[310975514,1704838276282,-500.0,0.00041178,30]
[310975515,1704838276292,-500.0,0.00041178,30]
[310975516,1704838276303,-4720.58,0.00041178,30]
[310975517,1704838276313,-500.0,0.00041178,30]
[310975518,1704838276324,-500.0,0.00041178,30]
[310975519,1704838276334,-500.0,0.00041178,30]
[310975520,1704838276344,-500.0,0.00041178,30]
[310975521,1704838276355,-6067.59,0.00041178,30]
[310975522,1704838276364,-514.76352736,0.00041178,30]
[310975523,1704838276374,-500.0,0.00041178,30]
[310975524,1704838276383,-3994.31,0.00041178,30]
[310975525,1704838276393,-500.0,0.00041178,30]
[310975526,1704838276403,-500.0,0.00041178,30]
[310975527,1704838276413,-500.0,0.00041178,30]
[310975528,1704838276423,-500.0,0.00041178,30]
[310975529,1704838276433,-500.0,0.00041178,30]
[310975530,1704838276443,-552.23,0.00041178,30]
[310975531,1704838276453,-695.23,0.00041178,30]
[310975532,1704838276463,-500.0,0.00041178,30]
[310975533,1704838276472,-500.0,0.00041178,30]
[310975534,1704838276482,-500.0,0.00041178,30]
[310975535,1704838276492,-1473.45,0.00041178,30]
[310975536,1704838276502,-1459.91,0.00041178,30]
[310975537,1704838276512,-12710.79,0.00041178,30]
[310975538,1704838276523,-6096.97,0.00041178,30]
[310975539,1704838276533,-1115.38,0.00041178,30]
[310975540,1704838276543,-1656.2,0.00041178,30]
[310975541,1704838276555,-14431.54,0.00041178,30]
[310975542,1704838276565,-910.24,0.00041178,30]
[310975543,1704838276575,-472.87604265,0.00041178,30]
[310975544,1704838276585,-2190.5,0.00041178,30]
[310975545,1704838276595,-544.6,0.00041178,30]
[310975546,1704838276605,-773.4,0.00041178,30]
[310975547,1704838276615,-542.59,0.00041178,30]
[310975548,1704838276626,-2105.66,0.00041178,30]
[310975549,1704838276642,-500.0,0.00041178,30]
[310975550,1704838276652,-500.0,0.00041178,30]
[310975551,1704838276662,-915.72,0.00041178,30]
[310975552,1704838276673,-1032.38,0.00041178,30]
[310975553,1704838276683,-14785.85,0.00041178,30]
[310975554,1704838276693,-500.0,0.00041178,30]
[310975555,1704838276703,-1211.12,0.00041178,30]
[310975556,1704838276713,-22037.22,0.00041178,30]
[310975557,1704838276725,-2087.61,0.00041178,30]
[310975558,1704838276736,-678.36,0.00041178,30]
[310975559,1704838276746,-2690.56,0.00041178,30]
[310975560,1704838276758,-500.0,0.00041178,30]
[310975561,1704838276768,-1158.78,0.00041178,30]
[310975562,1704838276778,-1200.26,0.00041178,30]
[310975563,1704838276788,-381.76069401,0.00041178,30]
[310975564,1704838276798,-190.15526482,0.00041178,14]
[310975565,1704838276810,-500.0,0.00041178,30]
[310975566,1704838276820,-500.0,0.00041178,30]
[310975567,1704838276830,-1698.21,0.00041178,30]
[310975568,1704838276840,-500.0,0.00041178,30]
[310975569,1704838276850,-868.29,0.00041178,30]
[310975570,1704838276859,-2233.54,0.00041178,30]
[310975571,1704838276869,-500.0,0.00041178,30]
[310975572,1704838276879,-500.0,0.00041178,30]
[310975573,1704838276889,-500.0,0.00041178,30]
[310975574,1704838276898,-500.0,0.00041178,30]
[310975575,1704838276908,-3590.14,0.00041178,30]
[310975576,1704838276918,-500.0,0.00041178,30]
[310975577,1704838276927,-696.1,0.00041178,30]
[310975578,1704838276937,-1289.91,0.00041178,30]
[310975579,1704838276947,-935.97,0.00041178,30]
[310975580,1704838276956,-256.43,0.00041178,30]
[310975581,1704838276966,-500.0,0.00041178,30]
[310975582,1704838276976,-3087.45,0.00041178,30]
[310975583,1704838276987,-932.38,0.00041178,30]
[310975584,1704838276997,-1957.42,0.00041178,30]
[310975585,1704838277007,-1755.99,0.00041178,30]
[310975586,1704838277017,-430.40709665,0.00041178,30]
[310975587,1704838277027,-1516.71,0.00041178,30]
[310975588,1704838277037,-2290.75,0.00041178,30]
[310975589,1704838277047,-500.0,0.00041178,30]
[310975590,1704838277059,-500.0,0.00041178,30]
[310975591,1704838277326,-4490.81,0.00041178,30]
[310975592,1704838277336,-500.0,0.00041178,30]
[310975593,1704838277346,-3587.54,0.00041178,30]
[310975594,1704838277356,-1124.84,0.00041178,30]
[310975595,1704838277365,-500.0,0.00041178,30]
[310975596,1704838277375,-2664.9,0.00041178,30]
[310975597,1704838277384,-500.0,0.00041178,30]
[310975598,1704838277394,-500.0,0.00041178,30]
[310975599,1704838277403,-1067.23,0.00041178,30]
[310975600,1704838277412,-1755.19,0.00041178,30]
[310975601,1704838277422,-627.07,0.00041178,30]
[310975602,1704838277431,-2101.87,0.00041178,30]
[310975603,1704838277440,-500.0,0.00041178,30]
[310975604,1704838277450,-866.03,0.00041178,30]
[310975605,1704838277460,-2150.53,0.00041178,30]
[310975606,1704838277470,-500.0,0.00041178,30]
[310975607,1704838277479,-500.0,0.00041178,30]
[310975608,1704838277489,-6286.35,0.00041178,30]
[310975609,1704838277499,-500.0,0.00041178,30]
[310975610,1704838277509,-2616.94,0.00041178,30]
[310975611,1704838277519,-500.0,0.00041178,30]
[310975612,1704838277528,-860.95,0.00041178,30]
[310975613,1704838277538,-1060.0,0.00041178,30]
[310975614,1704838277548,-3664.14,0.00041178,30]
[310975615,1704838277561,-4736.49,0.00041178,30]
[310975616,1704838277571,-40785.28,0.00041178,30]
[310975617,1704838277581,-785.46,0.00041178,30]
[310975618,1704838277590,-500.0,0.00041178,30]
[310975619,1704838277600,-1340.08,0.00041178,30]
[310975620,1704838277611,-658.29,0.00041178,30]
[310975621,1704838277620,-673.12,0.00041178,30]
[310975622,1704838277635,-500.0,0.00041178,30]
[310975623,1704838277645,-8699.1,0.00041178,30]
[310975624,1704838277656,-1946.17,0.00041178,30]
[310975625,1704838277666,-2512.6,0.00041178,30]
[310975626,1704838277675,-616.9,0.00041178,30]
[310975627,1704838277686,-533.86,0.00041178,30]
[310975628,1704838277696,-500.0,0.00041178,30]
[310975629,1704838277706,-4221.43,0.00041178,30]
[310975630,1704838277716,-1228.81,0.00041178,30]
[310975631,1704838277726,-500.0,0.00041178,30]
[310975632,1704838277736,-1699.6,0.00041178,30]
[310975633,1704838277748,-1021.25,0.00041178,2]
[310975634,1704838277758,-8912.41,0.00041178,30]
[310975635,1704838277768,-2915.16,0.00041178,30]
[310975636,1704838277778,-2785.67,0.00041178,30]
[310975637,1704838277788,-1025.86,0.00041178,30]
[310975638,1704838277798,-500.0,0.00041178,30]
[310975639,1704838277811,-500.0,0.00041178,30]
[310975640,1704838277821,-981.9,0.00041178,30]
[310975641,1704838277832,-828.29,0.00041178,30]
[310975642,1704838277843,-626.56,0.00041178,30]
[310975643,1704838277854,-758.12,0.00041178,30]
[310975644,1704838277864,-872.5,0.00041178,30]
[310975645,1704838277875,-2738.31,0.00041178,30]
[310975646,1704838277886,-2432.43,0.00041178,30]
[310975647,1704838277898,-1493.27,0.00041178,30]
[310975648,1704838277908,-500.0,0.00041178,30]
[310975649,1704838277919,-1780.73,0.00041178,30]
[310975650,1704838277930,-500.0,0.00041178,30]
[310975651,1704838277940,-2880.3,0.00041178,30]
[310975652,1704838277950,-500.0,0.00041178,30]
[310975653,1704838277959,-2449.49,0.00041178,30]
[310975654,1704838277970,-500.0,0.00041178,30]
[310975655,1704838277980,-500.0,0.00041178,30]
[310975656,1704838277990,-500.0,0.00041178,30]
[310975657,1704838277999,-919.25,0.00041178,30]
[310975658,1704838278011,-500.0,0.00041178,30]
[310975659,1704838278021,-515.49,0.00041178,30]
[310975660,1704838278031,-532.67,0.00041178,30]
[310975661,1704838278041,-1342.25,0.00041178,30]
[310975662,1704838278050,-3619.65,0.00041178,30]
[310975663,1704838278065,-1684.71,0.00041178,30]